bitfinex-derivatives/quotes_ETHF0:USTF0_20250403
["timestamp","ask_amount","ask_price","bid_price","bid_amount"]
[1743698288218,1.12302,1781.5,1781.4,1.12297]
[1743698288430,6.01522,1781.5,1781.1,2.80802]
[1743698288625,4.33092,1781.3,1781.2,1.12307]
[1743698289023,4.6483,1781.3,1781.2,1.12307]
[1743698289626,1.4405,1781.3,1781.2,1.12307]
[1743698291024,4.6483,1781.3,1781.2,1.12307]
[1743698291225,1.4405,1781.3,1781.2,1.12307]
[1743698294734,0.6922,1781.6,1781.5,1.12296]
[1743698295320,1.8151,1781.6,1781.5,1.12296]
[1743698295728,0.6922,1781.6,1781.5,1.12296]
[1743698296231,2.2127,1781.6,1781.5,1.12296]
[1743698297824,1.5205,1781.6,1781.5,1.12296]
[1743698298629,2.6434,1781.6,1781.5,1.12296]
[1743698298936,1.12301,1781.5,1781.4,1.12297]
[1743698299138,5.77971,1781.5,1781.4,1.12297]
[1743698299439,4.6567,1781.5,1781.4,1.12297]
[1743698304437,4.6567,1781.5,1781.4,3.34477]
[1743698305145,3.2078,1781.5,1781.4,3.34477]
[1743698305643,4.7342,1781.5,1781.4,3.34477]
[1743698306746,3.9506,1781.7,1781.6,1.1229]
[1743698306943,5.477,1781.7,1781.6,1.1229]
[1743698309138,2.2692,1781.7,1781.6,1.8724]
[1743698309341,3.2078,1781.9,1781.8,1.12277]
[1743698309537,4.6611,1781.9,1781.8,1.12277]
[1743698310350,1.1229,1781.7,1781.4,8.77756]
[1743698310543,5.1529,1781.7,1781.6,1.12285]
[1743698310744,8.3607,1781.7,1781.6,1.12285]
[1743698311246,7.2378,1781.7,1781.6,1.12285]
[1743698313161,8.36063,1781.7,1781.6,1.12285]
[1743698313358,7.2378,1781.7,1781.6,1.12285]
[1743698313548,8.36063,1781.7,1781.6,1.12285]
[1743698314851,7.2378,1781.7,1781.6,1.12285]
[1743698315956,8.36063,1781.7,1781.6,1.12285]
[1743698316757,7.2378,1781.7,1781.6,1.12285]
[1743698317163,8.36063,1781.7,1781.6,1.12285]
[1743698318158,7.2378,1781.7,1781.6,1.12285]
[1743698318857,8.36063,1781.7,1781.6,1.12285]
[1743698319057,7.2378,1781.7,1781.6,1.12285]
[1743698319257,8.36063,1781.7,1781.6,1.12285]
[1743698319553,7.2378,1781.7,1781.6,1.12285]
[1743698321363,0.7015,1781.9,1781.8,1.12277]
[1743698321364,3.9093,1781.9,1781.8,1.12277]
[1743698321564,7.9383,1781.9,1781.8,1.12277]
[1743698321757,9.06106,1781.9,1781.8,1.12277]
[1743698322366,1.12283,1781.8,1781.7,1.12278]
[1743698324265,1.12283,1781.8,1781.4,2.80742]
[1743698324266,5.30693,1781.8,1781.1,5.97]
[1743698324563,3.2078,1781.4,1781.3,1.12308]
[1743698324769,3.2078,1781.4,1781.1,10.97929]
[1743698324770,1.12313,1781.3,1781.2,1.12311]
[1743698324965,1.86774,1781.3,1781.2,1.12315]
[1743698325156,1.86774,1781.3,1781.0,40.8]
[1743698325157,3.2446,1781.3,1781.0,40.8]
[1743698325468,1.12327,1781.0,1780.9,1.12329]
[1743698325671,5.15127,1781.0,1780.9,1.12329]
[1743698325867,6.62547,1781.0,1780.9,41.92329]
[1743698326269,6.62547,1781.0,1780.9,41.92334]
[1743698327268,7.32777,1781.0,1780.9,41.92334]
[1743698330870,7.32777,1781.0,1780.9,40.8]
[1743698331273,9.82777,1781.0,1780.9,40.8]
[1743698331466,1.12334,1780.9,1780.8,0.00840548]
[1743698331670,1.12357,1780.6,1780.5,1.12358]
[1743698331873,8.35937,1780.6,1780.5,1.12358]
[1743698332264,8.35937,1780.6,1780.3,42.2443]
[1743698332265,1.12361,1780.5,1780.4,1.12359]
[1743698332467,3.98711,1780.5,1780.4,1.12359]
[1743698332766,3.98711,1780.5,1780.3,42.2443]
[1743698332767,1.12365,1780.4,1780.3,41.9237]
[1743698332969,5.76315,1780.4,1780.3,41.93210548]
[1743698333478,5.76315,1780.4,1780.3,0.00840548]
[1743698344581,8.26315,1780.4,1780.3,0.00840548]
[1743698344777,1.12397,1779.9,1779.8,0.717]
[1743698344977,8.36077,1779.9,1779.8,0.69730109]
[1743698345187,8.36077,1779.9,1779.8,41.49730109]
[1743698345381,8.36077,1779.9,1779.8,42.62133109]
[1743698345582,9.80137,1779.9,1779.8,44.03123109]
[1743698345784,9.80137,1779.9,1779.8,42.90720109]
[1743698346388,9.80137,1779.9,1779.8,44.03123109]
[1743698347484,3.2078,1780.1,1780.0,1.12391]
[1743698347683,7.21710109,1780.1,1780.0,1.12391]
[1743698347889,8.6774,1780.3,1780.2,1.12378]
[1743698348090,1.12381,1780.2,1780.1,3.38548]
[1743698348484,1.12381,1780.2,1780.1,44.18548]
[1743698348683,1.12381,1780.2,1780.1,40.8]
[1743698348883,1.12391,1780.0,1779.9,0.7613]
[1743698349079,8.36071,1780.0,1779.9,1.88527]
[1743698349383,8.36071,1780.0,1779.9,42.68527]
[1743698349583,8.36071,1780.0,1779.9,44.18567]
[1743698349782,9.75691,1780.0,1779.9,44.18567]
[1743698349983,3.2078,1780.2,1779.9,43.0617]
[1743698350183,1.12384,1780.1,1780.0,1.5004]
[1743698350489,1.12384,1780.1,1780.0,2.62429]
[1743698350882,1.12384,1780.1,1780.0,1.5004]
[1743698351090,1.12384,1780.1,1779.9,42.68523]
[1743698351091,1.12391,1780.0,1779.9,42.68523]
[1743698351393,3.2078,1780.0,1779.9,42.68523]
[1743698351583,2.52009,1780.1,1780.0,1.12391]
[1743698351784,2.52009,1780.1,1780.0,2.59811]
[1743698351987,7.2358,1780.2,1780.1,1.12384]
[1743698352192,3.2078,1780.2,1780.1,2.59804]
[1743698352692,7.2358,1780.2,1780.1,2.59804]
[1743698353888,8.35958,1780.2,1780.1,2.59804]
[1743698354089,7.2358,1780.2,1780.1,2.59804]
[1743698354693,8.35958,1780.2,1780.1,2.59804]
[1743698355287,1.12391,1780.1,1780.0,1.12384]
[1743698355495,2.56481,1780.1,1780.0,2.58594]
[1743698355788,1.4409,1780.1,1780.0,1.4621]
[1743698355990,1.12391,1780.0,1779.9,1.88523]
[1743698356193,4.33171,1780.0,1779.9,1.88527]
[1743698356597,4.33171,1780.0,1779.9,42.68527]
[1743698356798,4.33171,1780.0,1779.9,44.14737]
[1743698357890,3.2078,1780.0,1779.9,44.14737]
[1743698358091,4.33171,1780.0,1779.9,41.5613]
[1743698358294,4.33171,1780.0,1779.9,0.7613]
[1743698358696,4.33171,1780.0,1779.9,41.5613]
[1743698359399,2.56478,1780.1,1780.0,1.12391]
[1743698360299,2.56478,1780.1,1779.9,44.09451]
[1743698360300,1.12391,1780.0,1779.9,44.09451]
[1743698360496,4.33171,1780.0,1779.9,44.09451]
[1743698361905,4.33171,1780.0,1779.9,41.5613]
[1743698363005,4.33171,1780.0,1779.9,40.8]
[1743698363206,1.12397,1779.9,1779.8,0.69730109]
[1743698363412,1.12403,1779.8,1779.7,1.44700548]
[1743698363599,4.33183,1779.8,1779.7,43.37109548]
[1743698363900,5.86183,1779.8,1779.7,43.37109548]
[1743698364100,5.86183,1779.8,1779.7,42.24700548]
[1743698364299,5.86183,1779.8,1779.7,43.37109548]
[1743698364500,5.86183,1779.8,1779.7,42.24700548]
[1743698364805,5.86183,1779.8,1779.7,43.37109548]
[1743698366106,5.86183,1779.8,1779.7,42.24700548]
[1743698366294,5.86183,1779.8,1779.7,43.37109548]
[1743698366498,5.86183,1779.8,1779.7,42.24700548]
[1743698366697,5.86183,1779.8,1779.7,43.37109548]
[1743698367104,3.2078,1779.8,1779.7,43.37109548]
[1743698367299,4.33183,1779.8,1779.7,43.37109548]
[1743698368898,5.76283,1779.8,1779.7,43.37109548]
[1743698371099,2.55503,1779.8,1779.7,40.80840548]
[1743698371299,6.49223,1779.8,1779.7,40.80840548]
[1743698371806,6.49223,1779.8,1779.7,41.93249548]
[1743698372193,6.49223,1779.8,1779.7,40.80840548]
[1743698372607,6.49223,1779.8,1779.7,41.93249548]
[1743698372795,6.49223,1779.8,1779.7,40.80840548]
[1743698372996,6.49223,1779.8,1779.7,41.93249548]
[1743698373401,6.49223,1779.8,1779.7,40.80840548]
[1743698373607,6.49223,1779.8,1779.7,41.93249548]
[1743698373809,4.6388,1779.8,1779.7,41.93249548]
[1743698374006,3.2078,1780.0,1779.9,1.12397]
[1743698374303,4.33171,1780.0,1779.9,1.12397]
[1743698374608,5.75621,1780.0,1779.9,1.12397]
[1743698375209,1.12403,1779.8,1779.7,0.00840548]
[1743698375398,1.13538343,1779.7,1779.6,5.97]
[1743698375604,1.12428,1779.4,1779.3,4.10458]
[1743698375903,1.12447,1779.1,1779.0,1.12452]
[1743698376101,1.12454,1779.0,1778.9,1.84695]
[1743698376304,1.12454,1779.0,1778.7,40.8]
[1743698376305,1.4536,1779.0,1778.7,40.8]
[1743698376497,4.33246,1778.8,1778.7,40.8]
[1743698376702,1.12481,1778.6,1778.5,1.12483]
[1743698376903,4.33261,1778.6,1778.5,1.11353657]
[1743698377105,4.33261,1778.6,1778.5,41.91353657]
[1743698377306,4.33261,1778.6,1778.5,40.8]
[1743698377611,3.2078,1778.6,1778.5,41.92485]
[1743698378307,4.6614,1778.6,1778.5,41.92485]
[1743698378505,5.78619,1778.6,1778.5,43.36675]
[1743698378704,4.6614,1778.6,1778.5,43.36675]
[1743698380109,3.2078,1778.6,1778.5,43.36675]
[1743698385613,1.12485,1778.5,1778.4,1.84727]
[1743698385809,6.57895,1778.5,1778.4,1.84727]
[1743698387209,6.57895,1778.5,1778.4,1.12487]
[1743698387602,1.12494,1778.4,1778.3,1.12493]
[1743698387912,5.77414,1778.4,1778.3,1.12493]
[1743698388101,4.6492,1778.4,1778.3,1.12498]
[1743698389412,1.4414,1778.4,1778.3,1.12498]
[1743698390513,5.4674,1778.4,1778.3,1.12498]
[1743698391215,3.2078,1778.6,1778.5,1.12485]
[1743698391415,3.2078,1778.8,1778.4,2.1304]
[1743698391710,3.2078,1778.8,1778.7,1.12473]
[1743698392122,3.2078,1778.8,1778.7,3.62473]
[1743698392306,2.55334,1779.0,1778.9,1.1246]
[1743698392512,1.12464,1778.9,1778.8,1.1246]
[1743698392713,2.55344,1778.9,1778.8,1.1246]
[1743698392917,1.4288,1778.9,1778.8,1.1246]
[1743698393418,0.00842933,1779.1,1779.0,1.12454]
[1743698393815,1.47422933,1779.1,1779.0,1.12454]
[1743698394316,3.2078,1779.4,1779.3,1.12435]
[1743698394710,7.2338,1779.7,1779.6,1.12416]
[1743698394909,8.6996,1779.7,1779.6,1.12416]
[1743698395116,4.6736,1779.7,1779.6,1.12416]
[1743698395318,4.6736,1779.7,1779.6,41.92416]
[1743698395714,0.00842933,1779.8,1779.7,1.12409]
[1743698396712,1.47422933,1779.8,1779.7,1.12409]
[1743698397221,1.4684272,1779.8,1779.7,1.12409]
[1743698399117,1.4684272,1779.8,1779.7,2.51359]
[1743698400317,0.0026272,1779.8,1779.7,2.51359]
[1743698400524,1.488,1780.0,1779.9,1.12397]
[1743698400825,4.025,1780.5,1780.2,2.80941]
[1743698401117,5.77698,1780.7,1780.5,0.01969891]
[1743698401319,4.025,1780.6,1780.5,1.14328891]
[1743698401520,1.4457,1780.7,1780.5,1.14328891]
[1743698401724,4.03242933,1780.7,1780.6,1.12353]
[1743698402023,0.00842933,1780.7,1780.6,1.12353]
[1743698402323,0.00842933,1780.7,1780.6,41.92353]
[1743698405021,0.00842933,1780.7,1780.6,42.64553]
[1743698405526,4.023,1781.0,1780.9,1.12334]
[1743698406624,0.7364,1781.1,1781.0,1.12327]
[1743698406819,2.25242933,1781.1,1781.0,1.12327]
[1743698407121,1.51602933,1781.1,1781.0,1.12327]
[1743698407730,1.51602933,1781.1,1781.0,2.61597]
[1743698410128,0.00842933,1781.1,1781.0,2.61597]
[1743698411226,1.13163933,1781.1,1781.0,1.12327]
[1743698411619,2.24272933,1781.1,1781.0,1.12327]
[1743698411823,3.36593933,1781.1,1781.0,1.12327]
[1743698412326,2.24272933,1781.1,1781.0,1.12327]
[1743698413029,3.36593933,1781.1,1781.0,1.12327]
[1743698413228,1.12339,1780.9,1780.6,3.5308]
[1743698413430,1.4359,1780.8,1780.7,1.12346]
[1743698414027,4.74232933,1781.1,1781.0,1.12327]
[1743698414728,4.02842933,1781.1,1781.0,1.12327]
[1743698415233,5.46272933,1781.1,1781.0,1.12327]
[1743698416028,5.46272933,1781.1,1780.9,1.12329]
[1743698416329,6.58599933,1781.1,1781.0,1.12327]
[1743698416522,1.12331,1781.0,1780.9,1.12329]
[1743698416724,1.4343,1781.0,1780.9,1.12329]
[1743698417126,1.12339,1780.9,1780.8,1.12336]
[1743698417335,1.84379,1780.9,1780.8,1.12336]
[1743698417834,0.7204,1780.9,1780.8,1.12336]
[1743698418231,3.33094,1780.9,1780.8,1.12336]
[1743698418429,3.33094,1780.9,1780.5,11.98675]
[1743698418430,2.2076,1780.9,1780.5,11.98675]
[1743698418629,1.12359,1780.6,1780.5,1.12356]
[1743698418929,4.33138,1780.6,1780.4,0.00842933]
[1743698419121,7.35019,1780.5,1780.4,1.13207933]
[1743698419322,6.2266,1780.5,1780.4,1.13207933]
[1743698419731,7.35019,1780.5,1780.4,1.13207933]
[1743698419929,6.2266,1780.5,1780.4,1.13207933]
[1743698420326,7.35019,1780.5,1780.4,1.13207933]
[1743698421136,7.35019,1780.5,1780.4,0.00842933]
[1743698421432,1.4872,1780.5,1780.4,4.33987933]
[1743698421633,4.7238,1780.8,1780.7,1.12346]
[1743698421841,4.019,1780.8,1780.7,1.12346]
[1743698422032,5.14229,1781.0,1780.9,1.12334]
[1743698422234,4.019,1781.0,1780.9,1.12334]
[1743698422428,4.33948933,1781.1,1780.9,1.12334]
[1743698422429,7.23522933,1781.1,1781.0,1.12327]
[1743698422736,0.00842933,1781.1,1781.0,1.12327]
[1743698423035,1.43232933,1781.1,1781.0,1.12327]
[1743698423532,0.00842933,1781.1,1781.0,1.12327]
[1743698424533,1.39802933,1781.1,1781.0,1.12327]
[1743698425528,6.54027933,1781.1,1781.0,1.12327]
[1743698425728,5.41702933,1781.1,1781.0,1.12327]
[1743698425933,6.54023933,1781.1,1781.0,1.12327]
[1743698426434,5.41702933,1781.1,1781.0,1.12327]
[1743698426630,6.54023933,1781.1,1781.0,1.12327]
[1743698427243,1.12327,1781.0,1780.9,47.8933]
[1743698427536,2.56187,1781.0,1780.9,41.9233]
[1743698428042,1.4386,1781.0,1780.9,41.9233]
[1743698430044,0.00842933,1781.1,1781.0,1.12327]
[1743698430340,0.00842933,1781.1,1781.0,4.33107]
[1743698430541,0.00842933,1781.1,1781.0,2.56177]
[1743698431331,0.00842933,1781.1,1781.0,5.76957]
[1743698434641,0.00842933,1781.1,1781.0,8.26957]
[1743698434847,1.4184,1781.3,1781.2,1.12315]
[1743698435743,3.9729,1781.6,1781.5,1.12296]
[1743698436039,7.9899,1781.6,1781.5,1.12296]
[1743698437034,10.588,1781.6,1781.5,1.12296]
[1743698437237,9.4651,1781.6,1781.5,1.12296]
[1743698437440,7.3802,1781.6,1781.5,1.12296]
[1743698437843,1.12296,1781.5,1781.4,0.00842933]
[1743698438042,2.59816,1781.5,1781.4,1.13144933]
[1743698438250,2.59816,1781.5,1781.4,0.00842933]
[1743698438551,1.4752,1781.5,1781.4,1.13144933]
[1743698438744,2.59816,1781.5,1781.4,1.13144933]
[1743698438944,5.80596,1781.5,1781.4,0.00842933]
[1743698439145,2.59816,1781.5,1781.4,0.00842933]
[1743698439739,5.80596,1781.5,1781.4,0.00842933]
[1743698440144,5.80596,1781.5,1781.4,1.13144933]
[1743698440355,2.59816,1781.5,1781.4,1.13144933]
[1743698441244,2.59816,1781.5,1781.4,0.00842933]
[1743698441544,2.59816,1781.5,1781.4,1.13144933]
[1743698441747,2.59816,1781.5,1781.4,0.00842933]
[1743698441945,2.59816,1781.5,1781.4,1.13144933]
[1743698442152,2.59816,1781.5,1781.4,0.00842933]
[1743698442350,2.59816,1781.5,1781.4,1.13144933]
[1743698442947,2.59816,1781.5,1781.4,0.00842933]
[1743698443253,5.80596,1781.5,1781.4,0.00842933]
[1743698443751,5.80596,1781.5,1781.4,1.13144933]
[1743698444051,1.4752,1781.5,1781.4,1.13144933]
[1743698444754,1.4752,1781.5,1781.4,1.88894933]
[1743698444955,7.23222933,1781.7,1781.6,1.1229]
[1743698445146,4.65182933,1781.7,1781.6,1.1229]
[1743698445742,0.00842933,1781.7,1781.6,1.1229]
[1743698445954,0.00842933,1781.7,1781.6,2.6542]
[1743698446151,0.00842933,1781.7,1781.6,3.4009]
[1743698448151,0.7506,1782.2,1782.1,1.12258]
[1743698448347,5.88812,1782.2,1782.1,1.12258]
[1743698448549,1.87312,1782.2,1782.1,1.12258]
[1743698448853,1.87312,1782.2,1782.1,41.92258]
[1743698449155,1.87312,1782.2,1782.1,40.8]
[1743698449361,1.12265,1782.1,1782.0,1.12261]
[1743698449654,1.12271,1782.0,1781.9,1.12267]
[1743698449850,1.12271,1782.0,1781.9,40.8]
[1743698450050,1.87931,1782.0,1781.9,40.8]
[1743698451056,1.87931,1782.0,1781.9,41.92271]
[1743698451749,1.87931,1782.0,1781.9,1.12271]
[1743698452151,0.7566,1782.0,1781.9,1.12271]
[1743698452352,1.87924,1782.0,1781.9,41.92271]
[1743698452552,3.37224,1782.0,1781.9,41.92271]
[1743698453958,2.2496,1782.0,1781.9,41.92271]
[1743698454159,3.37224,1782.0,1781.9,41.92271]
[1743698454350,1.493,1782.0,1781.9,41.92271]
[1743698455255,1.493,1782.0,1781.9,42.62411]
[1743698457760,2.61564,1782.0,1781.9,41.92271]
[1743698458362,1.493,1782.0,1781.9,41.92271]
[1743698459259,1.87312,1782.2,1782.1,1.12258]
[1743698459460,1.4225,1782.1,1782.0,1.1226]
[1743698460360,1.4225,1782.1,1782.0,2.5821]
[1743698460766,1.4225,1782.1,1782.0,3.3486]
[1743698460961,0.00842933,1782.3,1782.2,1.12252]
[1743698461167,1.46632933,1782.3,1782.2,1.12252]
[1743698461664,0.00842933,1782.3,1782.2,1.12252]
[1743698461872,0.7091,1782.5,1782.4,1.12239]
[1743698462470,2.167,1782.5,1782.4,1.12239]
[1743698462989,1.4579,1782.5,1782.4,1.12239]
[1743698463485,1.4579,1782.5,1782.3,4.6858]
[1743698463689,2.58028,1782.5,1782.4,1.12239]
[1743698464386,1.4579,1782.5,1782.4,1.12239]
[1743698464783,2.58023,1782.5,1782.4,1.12239]
[1743698465486,1.4579,1782.5,1782.4,1.12239]
[1743698465684,0.0054657,1782.6,1782.5,1.12233]
[1743698465893,1.4984,1782.9,1782.8,1.12214]
[1743698466577,1.4772,1783.2,1782.9,1.12208]
[1743698466779,3.2078,1783.5,1783.4,1.12176]
[1743698467089,3.2078,1783.5,1783.1,2.80475]
[1743698467090,3.2078,1783.5,1783.1,3.2078]
[1743698467290,1.12183,1783.3,1783.2,41.92184]
[1743698467581,0.7509,1783.4,1783.2,41.92186]
[1743698467788,0.7509,1783.4,1783.2,40.8]
[1743698467984,1.4593,1783.3,1783.2,41.92184]
[1743698468184,2.58113,1783.3,1783.2,40.8]
[1743698468391,9.79993,1783.3,1783.2,40.8]
[1743698468687,10.52623,1783.3,1783.2,41.92189]
[1743698469187,9.4044,1783.3,1783.2,41.92189]
[1743698469388,7.31843,1783.3,1783.2,1.12189]
[1743698469593,5.4703,1783.3,1783.2,1.12189]
[1743698469784,1.4593,1783.3,1783.2,41.92189]
[1743698469983,3.9327,1783.8,1783.5,1.12166]
[1743698470187,1.4347,1783.5,1783.4,1.12176]
[1743698470490,1.4347,1783.5,1783.4,3.26156]
[1743698470787,2.5564,1783.5,1783.4,2.1398]
[1743698470980,2.5564,1783.5,1783.4,0.7197]
[1743698471183,1.4347,1783.5,1783.4,1.84146]
[1743698472284,4.74,1783.7,1783.4,0.7197]
[1743698472486,2.55634,1783.6,1783.5,2.5418]
[1743698472685,1.4347,1783.6,1783.5,2.5418]
[1743698473094,1.1217,1783.5,1783.4,2.562]
[1743698473295,2.55638,1783.6,1783.5,1.1217]
[1743698473488,2.55638,1783.6,1783.4,1.4403]
[1743698473688,1.433,1783.5,1783.4,2.56206]
[1743698474595,2.5547,1783.5,1783.2,44.0078]
[1743698474798,1.12176,1783.4,1783.3,1.12181]
[1743698475093,1.433,1783.4,1783.3,1.12181]
[1743698475489,1.433,1783.4,1783.3,2.53181]
[1743698476694,7.54395,1783.7,1783.4,1.12176]
[1743698476895,1.4111,1783.6,1783.4,1.12176]
[1743698477091,1.12179,1783.4,1783.3,1.12179]
[1743698477293,1.12183,1783.3,1783.2,42.273]
[1743698477492,1.12183,1783.3,1783.2,40.8]
[1743698477694,1.12197,1783.1,1783.0,1.12201]
[1743698478197,1.12197,1783.1,1783.0,41.92201]
[1743698478696,1.12201,1783.0,1782.9,1.13045933]
[1743698478895,2.53311,1783.0,1782.9,1.13050933]
[1743698479093,2.53311,1783.0,1782.9,0.00842933]
[1743698479295,2.53311,1783.0,1782.9,40.80842933]
[1743698479593,3.22791,1783.0,1782.9,40.80842933]
[1743698479993,6.43571,1783.0,1782.9,40.80842933]
[1743698480197,3.22791,1783.0,1782.9,40.80842933]
[1743698480694,3.22791,1783.0,1782.9,41.93050933]
[1743698480888,2.1059,1783.0,1782.9,41.93050933]
[1743698481087,3.22791,1783.0,1782.9,41.93050933]
[1743698481294,3.22791,1783.0,1782.9,40.80842933]
[1743698481295,6.43571,1783.0,1782.9,40.80842933]
[1743698483596,8.93571,1783.0,1782.9,0.00842933]
[1743698483797,8.93571,1783.0,1782.5,1.12229]
[1743698483798,1.12233,1782.5,1782.4,0.6999]
[1743698483993,2.80547,1782.8,1782.4,42.62225]
[1743698483994,4.008,1782.6,1782.4,42.62225]
[1743698484199,1.4882,1782.7,1782.6,1.12227]
[1743698484404,7.2158,1782.8,1782.7,1.1222]
[1743698485205,9.79094,1782.8,1782.7,1.1222]
[1743698486296,5.461,1782.8,1782.7,1.1222]
[1743698486689,6.58314,1782.8,1782.7,1.1222]
[1743698487090,5.461,1782.8,1782.7,1.1222]
[1743698487295,0.7393,1782.9,1782.7,1.1222]
[1743698487502,6.47761,1783.0,1782.9,1.12208]
[1743698487696,9.3636,1783.0,1782.9,1.12208]
[1743698487901,10.48561,1783.0,1782.9,1.12208]
[1743698488102,7.27781,1783.0,1782.9,1.12208]
[1743698488498,0.00842933,1783.1,1783.0,1.12201]
[1743698488700,0.00842933,1783.1,1783.0,4.09191]
[1743698489105,0.00842933,1783.1,1783.0,1.12201]
[1743698489306,2.61887933,1783.1,1783.0,1.12201]
[1743698489507,1.49692933,1783.1,1783.0,1.12201]
[1743698490607,0.00842933,1783.1,1783.0,4.32981]
[1743698490908,1.12172,1783.5,1783.4,1.1217]
[1743698491106,1.4885,1783.5,1783.4,1.1217]
[1743698491505,3.9279,1783.8,1783.7,1.12157]
[1743698491704,8.6141,1783.8,1783.7,1.12157]
[1743698492303,1.3993,1783.8,1783.7,1.12157]
[1743698492704,1.3993,1783.8,1783.7,2.59237]
[1743698492910,1.3993,1783.8,1783.7,1.12157]
[1743698493411,1.3993,1783.8,1783.7,41.92157]
[1743698493911,1.3993,1783.8,1783.7,43.39237]
[1743698494813,2.52081,1783.8,1783.7,41.92157]
[1743698495704,1.3993,1783.8,1783.7,1.12157]
[1743698496320,1.3993,1783.8,1783.7,2.58517]
[1743698496503,2.52081,1783.8,1783.7,2.58517]
[1743698496707,1.3993,1783.8,1783.7,1.12157]
[1743698497014,1.3993,1783.8,1783.7,43.38517]
[1743698497202,1.3993,1783.8,1783.7,41.92157]
[1743698497402,1.3993,1783.8,1783.6,5.97842933]
[1743698497603,1.12157,1783.7,1783.6,0.00842933]
[1743698497811,5.12657,1783.7,1783.6,0.00842933]
[1743698498001,6.60997,1783.7,1783.6,0.00842933]
[1743698498208,9.10997,1783.7,1783.6,0.00842933]
[1743698498602,2.80433,1783.5,1782.7,2.80551]
[1743698498809,3.2078,1783.3,1782.8,42.2215]
[1743698499006,5.12693,1783.2,1783.1,1.12195]
[1743698499308,4.005,1783.2,1782.8,45.02679]
[1743698499507,4.005,1783.2,1783.1,1.12195]
[1743698499706,4.01342933,1783.2,1782.8,45.03521933]
[1743698499907,1.12195,1783.1,1782.8,42.22992933]
[1743698500106,1.12195,1783.1,1783.0,1.12201]
[1743698500318,3.2078,1783.1,1782.8,0.00842933]
[1743698500615,1.12205,1783.0,1782.9,1.12206]
[1743698500809,1.12208,1782.9,1782.8,1.13054933]
[1743698501019,5.12708,1782.9,1782.8,0.00842933]
[1743698501309,10.83488,1782.9,1782.8,40.80842933]
[1743698501508,1.12225,1782.7,1782.5,1.12229]
[1743698501705,1.12227,1782.6,1782.5,1.12229]
[1743698501908,5.5232,1782.6,1782.3,1.4578]
[1743698502108,5.5232,1782.6,1782.4,1.12235]
[1743698502109,1.12238,1782.5,1782.4,1.12235]
[1743698502310,5.5232,1782.6,1782.3,1.4578]
[1743698502513,1.12235,1782.5,1782.4,1.12236]
[1743698502704,1.5182,1782.5,1782.4,1.12236]
[1743698503119,5.4965,1782.8,1782.7,1.1222]
[1743698503304,4.7433,1782.8,1782.7,1.1222]
[1743698503709,4.005,1782.8,1782.7,1.1222]
[1743698504112,3.2078,1782.9,1782.8,1.12214]
[1743698504509,4.7415,1782.9,1782.8,1.12214]
[1743698506915,5.86358,1782.9,1782.8,1.12214]
[1743698507112,4.7415,1782.9,1782.7,7.3592]
[1743698507317,5.12714,1782.8,1782.7,5.97]
[1743698507619,7.36274,1782.8,1782.7,5.97]
[1743698507818,10.55434,1782.8,1782.7,46.77]
[1743698508017,2.80551,1782.7,1782.3,0.00842933]
[1743698508320,1.12239,1782.4,1782.3,0.00842933]
[1743698508514,5.12739,1782.4,1782.3,0.00842933]
[1743698508722,9.10109,1782.4,1782.3,0.00842933]
[1743698508910,6.60109,1782.4,1782.3,0.00842933]
[1743698509114,2.59609,1782.4,1782.3,0.00842933]
[1743698509318,5.4787,1782.4,1782.3,1.13087933]
[1743698509624,5.4797,1782.4,1782.3,1.13087933]
[1743698512020,4.006,1782.4,1782.3,1.13087933]
[1743698512215,4.006,1782.4,1782.3,1.82187933]
[1743698512420,1.421,1782.6,1782.5,1.12233]
[1743698513820,2.54327,1782.6,1782.5,1.12233]
[1743698514121,1.421,1782.6,1782.5,1.12233]
[1743698515613,1.421,1782.6,1782.3,5.97842933]
[1743698515614,1.12239,1782.4,1782.3,5.97842933]
[1743698515819,5.12739,1782.4,1782.3,5.97842933]
[1743698516019,8.33519,1782.4,1782.3,5.97842933]
[1743698516326,8.33519,1782.4,1782.3,7.10087933]
[1743698516623,9.02869,1782.4,1782.3,7.10087933]
[1743698517222,3.9013,1782.4,1782.3,7.10087933]
[1743698517522,4.005,1782.4,1782.3,7.10087933]
[1743698517827,4.7509,1782.7,1782.6,1.12227]
[1743698518126,1.4559,1782.7,1782.6,1.12227]
[1743698518622,1.12227,1782.6,1782.5,1.82088]
[1743698518927,1.12239,1782.5,1782.4,1.12237]
[1743698519121,5.12739,1782.5,1782.4,1.12237]
[1743698519421,4.005,1782.5,1782.4,1.12237]
[1743698519924,5.5076,1782.5,1782.4,1.12237]
[1743698520522,4.005,1782.8,1782.7,1.1222]
[1743698520720,1.5026,1782.8,1782.7,1.1222]
[1743698520919,7.2128,1782.9,1782.8,1.12214]
[1743698521421,3.2078,1782.9,1782.8,1.12214]
[1743698521623,1.5026,1783.0,1782.9,1.12208]
[1743698522024,0.00842933,1783.2,1782.9,1.12208]
[1743698522328,6.57784933,1783.2,1783.1,1.12195]
[1743698522627,1.12195,1783.1,1783.0,1.12195]
[1743698522823,1.12206,1783.0,1782.9,1.12203]
[1743698523225,2.56456,1783.0,1782.9,1.12203]
[1743698523420,1.4425,1783.0,1782.9,1.12203]
[1743698523620,3.2078,1783.1,1783.0,1.12201]
[1743698523825,4.01342933,1783.2,1783.1,1.12195]
[1743698524223,5.45592933,1783.2,1783.1,1.12195]
[1743698525531,0.00842933,1783.2,1783.1,1.12195]
[1743698525830,0.00842933,1783.2,1783.1,4.32975]
[1743698526026,9.33e-06,1783.2,1783.1,12.79975]